bitfinex/quotes_ETHUSD_20250930
["timestamp","ask_amount","ask_price","bid_price","bid_amount"]
[1759208342145,5.9382,4199.1,4199.0,0.6629]
[1759208342465,3.2322,4199.1,4199.0,0.6629]
[1759208342672,5.9382,4199.1,4199.0,0.6629]
[1759208343169,3.2322,4199.1,4199.0,0.6629]
[1759208343373,5.9382,4199.1,4199.0,0.6629]
[1759208346173,3.2322,4199.1,4199.0,0.6629]
[1759208346468,5.9382,4199.1,4199.0,0.6629]
[1759208347339,5.9382,4199.1,4199.0,15.1629]
[1759208349679,5.9382,4199.1,4199.0,0.002]
[1759208349859,10.43839943,4199.1,4199.0,0.002]
[1759208353380,8.05693674,4199.1,4199.0,0.002]
[1759208355079,8.05773674,4199.1,4199.0,0.002]
[1759208357162,7.82543674,4199.1,4199.0,0.002]
[1759208357362,4.65533674,4199.1,4199.0,0.002]
[1759208357682,7.36133674,4199.1,4199.0,0.002]
[1759208360688,5.08893674,4199.1,4199.0,0.002]
[1759208360860,7.79493674,4199.1,4199.0,0.002]
[1759208363588,10.17639943,4199.1,4199.0,0.002]
[1759208363788,7.79493674,4199.1,4199.0,0.002]
[1759208364494,10.17639943,4199.1,4199.0,0.002]
[1759208366581,5.08893674,4199.1,4199.0,0.002]
[1759208366781,10.17539943,4199.1,4199.0,0.002]
[1759208368090,9.74179943,4199.1,4199.0,0.002]
[1759208368295,10.40769943,4199.1,4199.0,0.002]
[1759208369895,10.17539943,4199.1,4199.0,0.002]
[1759208371128,9.74179943,4199.1,4199.0,0.002]
[1759208371584,10.17539943,4199.1,4199.0,0.002]
[1759208375604,7.47039943,4199.1,4199.0,0.002]
[1759208375803,10.17539943,4199.1,4199.0,0.002]
[1759208382498,10.41469943,4199.1,4199.0,0.002]
[1759208383123,10.17829943,4199.1,4199.0,0.002]
[1759208384541,9.74179943,4199.1,4199.0,0.002]
[1759208384709,10.74436184,4199.1,4199.0,0.002]
[1759208385607,8.03936184,4199.1,4199.0,0.002]
[1759208385800,10.74436184,4199.1,4199.0,0.002]
[1759208393964,8.03936184,4199.1,4199.0,0.002]
[1759208394162,10.50796184,4199.1,4199.0,0.002]
[1759208394530,7.36646184,4199.1,4199.0,0.002]
[1759208394766,9.74179943,4199.1,4199.0,0.002]
[1759208395745,10.17829943,4199.1,4199.0,0.002]
[1759208396264,9.74179943,4199.1,4199.0,0.002]
[1759208397669,10.41469943,4199.1,4199.0,0.002]
[1759208398372,10.74436184,4199.1,4199.0,0.002]
[1759208400780,17.70086376,4199.1,4199.0,0.002]
[1759208404275,17.02796376,4199.1,4199.0,0.002]
[1759208404870,16.69830135,4199.1,4199.0,0.002]
[1759208405462,17.13480135,4199.1,4199.0,0.002]
[1759208406186,17.46446376,4199.1,4199.0,0.002]
[1759208407387,17.02796376,4199.1,4199.0,0.002]
[1759208408590,17.46446376,4199.1,4199.0,0.002]
[1759208408997,17.70086376,4199.1,4199.0,0.002]
[1759208409292,17.46446376,4199.1,4199.0,0.002]
[1759208409793,17.71126376,4199.1,4199.0,0.002]
[1759208410093,17.02796376,4199.1,4199.0,0.002]
[1759208410390,17.48776376,4199.1,4199.0,0.002]
[1759208412179,17.02796376,4199.1,4199.0,0.002]
[1759208412502,17.48776376,4199.1,4199.0,0.002]
[1759208413065,17.02796376,4199.1,4199.0,0.002]
[1759208413466,17.73456376,4199.1,4199.0,0.002]
[1759208414598,17.48776376,4199.1,4199.0,0.002]
[1759208415171,17.73226376,4199.1,4199.0,0.002]
[1759208416408,22.6020972,4199.1,4199.0,0.002]
[1759208417205,21.8977972,4199.1,4199.0,0.002]
[1759208420014,22.5979972,4199.1,4199.0,0.002]
[1759208420891,21.8977972,4199.1,4199.0,0.002]
[1759208421513,22.3534972,4199.1,4199.0,0.002]
[1759208422918,21.8977972,4199.1,4199.0,0.002]
[1759208423517,19.1927972,4199.1,4199.0,0.2367]
[1759208423689,21.8977972,4199.1,4199.0,0.7047]
[1759208423889,21.8977972,4199.1,4199.0,1e-08]
[1759208424107,2.38157612,4198.9,4198.8,0.468]
[1759208424313,10.48388155,4198.9,4198.8,0.468]
[1759208424917,11.29480052,4198.8,4198.7,0.002]
[1759208425805,13.99980052,4198.8,4198.7,0.002]
[1759208426006,13.99980052,4198.8,4198.7,0.2367]
[1759208426205,13.99980052,4198.8,4198.7,0.002]
[1759208426408,15.80071181,4198.8,4198.7,0.002]
[1759208428223,16.03741181,4198.8,4198.7,0.002]
[1759208432002,16.03741181,4198.8,4198.7,0.2367]
[1759208432809,16.03741181,4198.8,4198.7,0.002]
[1759208433026,16.03741181,4198.8,4198.7,0.2367]
[1759208433401,16.03741181,4198.8,4198.7,0.002]
[1759208435331,13.33241181,4198.8,4198.7,0.002]
[1759208435534,16.03741181,4198.8,4198.7,0.002]
[1759208436823,16.28191181,4198.8,4198.7,0.002]
[1759208437221,17.06727422,4198.8,4198.7,0.002]
[1759208437732,13.66207422,4198.8,4198.7,0.002]
[1759208437917,16.36707422,4198.8,4198.7,0.002]
[1759208439203,13.66207422,4198.8,4198.7,0.2367]
[1759208439402,10.12424413,4198.8,4198.7,0.6696]
[1759208440020,10.12424413,4198.8,4198.7,0.2367]
[1759208442258,10.12424413,4198.8,4198.7,0.002]
[1759208442557,10.82024413,4198.8,4198.7,0.002]
[1759208442846,10.12424413,4198.8,4198.7,0.002]
[1759208443714,10.12524413,4198.8,4198.7,0.002]
[1759208446158,11.15090654,4198.8,4198.7,0.002]
[1759208446451,11.17282854,4198.8,4198.7,0.002]
[1759208446624,11.63042854,4198.8,4198.7,0.002]
[1759208447020,10.93442854,4198.8,4198.7,0.002]
[1759208447754,8.22942854,4198.8,4198.7,0.002]
[1759208447949,10.93442854,4198.8,4198.7,0.002]
[1759208448963,10.93442854,4198.8,4198.7,0.2472]
[1759208449331,10.93442854,4198.8,4198.7,0.002]
[1759208450127,5.94899525,4198.8,4198.7,0.002]
[1759208450434,3.0611,4198.8,4198.7,0.6801]
[1759208450638,6.0611,4198.8,4198.7,0.6801]
[1759208451443,3.3561,4198.8,4198.7,0.6801]
[1759208451740,6.0611,4198.8,4198.7,0.6801]
[1759208453635,3.2377,4198.8,4198.7,0.6801]
[1759208453871,5.9427,4198.8,4198.7,2.19851]
[1759208454263,3.2377,4198.8,4198.7,2.19851]
[1759208454568,5.9427,4198.8,4198.7,2.19851]
[1759208454768,5.706,4198.8,4198.7,2.31691]
[1759208454943,5.706,4198.8,4198.7,0.7985]
[1759208455735,5.705,4198.8,4198.7,0.7985]
[1759208458177,3.001,4198.8,4198.7,0.7985]
[1759208458475,5.705,4198.8,4198.7,0.7985]
[1759208458678,5.705,4198.8,4198.7,15.2985]
[1759208458877,5.705,4198.8,4198.7,17.06692446]
[1759208459238,3.001,4198.8,4198.7,17.06692446]
[1759208459444,5.705,4198.8,4198.7,17.06692446]
[1759208460250,3.001,4198.8,4198.7,17.06692446]
[1759208460456,5.705,4198.8,4198.7,17.06692446]
[1759208460644,14.69580052,4198.8,4198.7,0.002]
[1759208460866,11.61816768,4198.8,4198.7,0.002]
[1759208461048,12.33467543,4198.8,4198.7,0.002]
[1759208461774,12.33467543,4198.8,4198.7,0.2472]
[1759208462276,6.42150775,4198.8,4198.7,0.2472]
[1759208462476,8.80314059,4198.8,4198.7,0.2472]
[1759208462664,6.09914059,4198.8,4198.7,0.002]
[1759208462844,8.23462691,4198.8,4198.7,0.002]
[1759208463045,3.71750775,4198.8,4198.7,0.002]
[1759208463351,6.42150775,4198.8,4198.7,0.002]
[1759208463766,9.49914059,4198.8,4198.7,0.002]
[1759208464577,6.79514059,4198.8,4198.7,0.002]
[1759208464779,9.50114059,4198.8,4198.7,0.002]
[1759208466177,11.28082379,4198.8,4198.7,0.002]
[1759208467178,11.6104862,4198.8,4198.7,0.002]
[1759208469563,11.28282379,4198.8,4198.7,0.002]
[1759208470388,11.219709,4198.8,4198.7,0.002]
[1759208473608,11.54937141,4198.8,4198.7,0.002]
[1759208476263,18.50838103,4198.8,4198.7,0.002]
[1759208481461,18.50938103,4198.8,4198.7,0.002]
[1759208481663,19.30138103,4198.8,4198.7,0.002]
[1759208483684,19.30138103,4198.8,4198.5,0.002]
[1759208483685,6.17374629,4198.6,4198.5,0.002]
[1759208483884,9.2114087,4198.6,4198.5,0.002]
[1759208484077,9.8786087,4198.6,4198.5,0.002]
[1759208484278,1.433,4198.0,4194.4,0.46660342]
[1759208484490,3.0,4195.1,4194.5,0.674]
[1759208484800,6.95900962,4195.2,4193.4,2.722]
[1759208484801,3.0,4194.9,4194.6,15.174]
[1759208484999,0.674,4195.0,4194.6,14.5]
[1759208485163,0.674,4195.0,4193.2,0.71711919]
[1759208485164,0.902,4194.9,4193.3,7.85]
[1759208485369,3.4,4195.0,4193.7,2.725]
[1759208485583,3.4,4195.0,4193.8,3.06084582]
[1759208485584,2.726,4195.0,4193.8,3.06084582]
[1759208485878,0.71710034,4195.0,4193.9,0.674]
[1759208486076,2.726,4194.9,4194.6,16.88399831]
[1759208486288,2.38325555,4196.0,4193.8,2.38444582]
[1759208486289,0.7172735,4195.4,4194.7,0.6978396]
[1759208486493,3.0,4195.2,4194.8,0.674]
[1759208486801,0.7172735,4195.4,4194.9,0.674]
[1759208486802,3.0,4195.0,4194.9,0.674]
[1759208487001,5.739,4195.0,4194.9,0.2372]
[1759208487199,5.739,4195.0,4194.9,0.674]
[1759208487503,6.45618605,4195.0,4194.9,0.674]
[1759208487666,8.83997627,4195.0,4194.9,0.674]
[1759208488069,0.71718605,4195.0,4194.9,0.2372]
[1759208488266,5.38384705,4194.9,4194.5,0.2372]
[1759208488472,5.1299294,4194.8,4194.6,0.674]
[1759208488666,5.1299294,4194.8,4194.7,0.2372]
[1759208488888,2.38401267,4194.7,4194.4,0.2372]
[1759208489097,2.77083976,4194.6,4194.5,0.2372]
[1759208489297,2.77083976,4194.6,4194.5,0.4368]
[1759208489498,2.77083976,4194.6,4194.2,0.4368]
[1759208489701,5.15486605,4194.6,4194.2,0.4368]
[1759208490005,0.71718605,4195.0,4194.3,0.674]
[1759208490175,2.38385678,4194.9,4194.4,0.674]
[1759208490371,3.0,4194.7,4194.5,0.674]
[1759208490572,2.748,4194.6,4194.0,14.5]
[1759208490879,2.748,4194.6,4194.0,16.18844609]
[1759208491095,2.748,4194.5,4194.1,0.674]
[1759208491287,2.748,4194.4,4194.2,0.674]
[1759208491609,2.748,4194.4,4194.3,0.674]
[1759208492307,2.748,4194.4,4194.0,16.18844609]
[1759208492602,2.748,4194.4,4194.3,0.2372]
[1759208493013,0.71718605,4195.0,4194.3,0.674]
[1759208493321,3.0,4194.8,4194.4,0.674]
[1759208493615,3.0,4194.8,4194.5,0.674]
[1759208493923,5.38391003,4194.8,4194.0,16.18844609]
[1759208494096,3.0,4194.8,4194.1,0.674]
[1759208494301,2.38396359,4194.7,4194.4,0.1192]
[1759208494487,2.748,4194.6,4194.4,0.3564]
[1759208494684,5.38407438,4194.5,4194.4,0.1192]
[1759208494921,5.38407438,4194.5,4194.0,14.5]
[1759208494922,2.38413122,4194.4,4194.0,14.5]
[1759208495231,2.747,4194.3,4194.1,0.2372]
[1759208495735,2.747,4194.3,4194.0,14.9368]
[1759208495736,3.0,4194.3,4194.2,0.674]
[1759208496095,5.75,4194.3,4194.2,0.674]
[1759208496301,3.0,4194.3,4194.2,0.674]
[1759208496598,3.0,4194.3,4194.2,2.42984035]
[1759208497988,3.0,4194.3,4194.2,0.674]
[1759208498302,3.0,4194.3,4194.2,17.5582449]
[1759208498508,3.0,4194.3,4194.2,14.7372]
[1759208498710,3.0,4194.3,4194.2,17.5582449]
[1759208500188,3.0,4195.4,4194.5,2.38407438]
[1759208500386,3.0,4195.2,4194.6,0.73174017]
[1759208500588,0.71713633,4194.7,4194.6,2.8806495]
[1759208500792,3.46613633,4194.7,4194.6,0.49664017]
[1759208501116,5.749,4194.7,4194.6,2.85681754]
[1759208501285,5.749,4194.7,4194.6,3.09191754]
[1759208501502,0.71710033,4194.9,4194.6,0.7079]
[1759208501703,2.749,4194.8,4194.7,0.7079]
[1759208501914,0.71710033,4194.9,4194.7,0.7079]
[1759208502114,2.749,4194.8,4194.5,4.21]
[1759208502334,0.71710033,4194.9,4194.6,0.7079]
[1759208502534,2.749,4194.8,4194.7,0.7079]
[1759208502831,0.71708148,4195.5,4194.7,3.09186071]
[1759208503033,0.2326,4195.7,4194.7,0.4728]
[1759208503240,0.71704549,4195.5,4194.8,2.61900388]
[1759208503604,0.74088525,4195.5,4194.8,2.61900388]
[1759208503917,0.74088525,4195.5,4194.9,0.2351]
[1759208503918,0.71704549,4195.5,4194.9,0.2351]
[1759208504113,2.748,4195.5,4195.0,0.4728]
[1759208504313,2.38299624,4196.4,4195.5,2.38349238]
[1759208504612,5.13205749,4196.3,4195.5,0.2351]
[1759208504812,0.14223976,4196.2,4195.5,2.73697433]
[1759208505017,2.749,4196.1,4195.5,2.73697433]
[1759208505219,0.1184,4196.2,4195.6,17.35623673]
[1759208505415,2.749,4196.0,4195.6,14.9728]
[1759208505620,0.4469,4195.9,4195.6,14.5]
[1759208506136,0.8353581,4196.2,4195.7,0.7079]
[1759208506338,0.7169581,4196.2,4195.8,0.3535]
[1759208506540,2.748,4196.1,4195.8,0.3535]
[1759208506715,2.52518886,4196.5,4195.9,14.7351]
[1759208506716,0.1184,4196.5,4195.9,14.7351]
[1759208506918,2.748,4196.4,4195.9,15.2079]
[1759208507119,0.71687414,4196.5,4196.2,0.1184]
[1759208507439,2.748,4196.4,4196.3,0.2351]
[1759208507752,1.16374673,4196.8,4196.3,14.5]
[1759208507911,0.71684673,4196.8,4196.3,14.7351]
[1759208508111,2.748,4196.7,4196.5,0.1184]
[1759208508419,2.748,4196.6,4196.5,0.1184]
[1759208508619,2.747,4196.6,4196.5,0.1184]
[1759208508832,0.7168022,4196.9,4196.5,14.6184]
[1759208509044,2.748,4196.8,4196.5,14.6184]
[1759208510747,0.7979,4197.2,4196.5,14.8535]
[1759208510908,0.1184,4197.2,4196.6,0.02382881]
[1759208511115,2.38206522,4198.1,4196.7,0.2351]
[1759208511116,0.9206,4197.9,4196.7,0.2351]
[1759208511315,2.38242926,4197.4,4197.1,0.1184]
[1759208511537,3.45033976,4197.3,4196.5,14.5]
[1759208511738,3.45033976,4197.3,4196.8,0.1184]
[1759208511934,0.6795,4197.2,4196.8,0.1184]
[1759208512144,0.02383976,4197.1,4196.5,14.6184]
[1759208512347,5.57756215,4197.0,4196.5,14.6184]
[1759208512664,0.1184,4197.2,4196.6,0.2351]
[1759208512846,2.748,4197.1,4196.6,0.7079]
[1759208513027,2.748,4197.1,4196.6,0.2351]
[1759208513549,3.1949,4197.1,4196.6,0.2351]
[1759208513848,2.50095837,4197.2,4196.7,0.02382824]
[1759208514013,2.50098037,4197.2,4196.6,0.2351]
[1759208514219,5.12964295,4197.1,4196.5,14.6184]
[1759208514546,2.747,4197.1,4196.5,14.6184]
[1759208514745,5.15345543,4197.1,4196.5,14.6184]
[1759208514946,0.4469,4197.0,4196.5,14.6184]
[1759208515243,2.82956521,4197.0,4196.5,14.6184]
[1759208515443,2.38271915,4196.9,4196.5,14.6184]
[1759208515657,0.6795,4196.8,4196.5,14.6184]
[1759208515950,2.746,4196.7,4196.5,14.6184]
[1759208516329,5.12882517,4196.7,4196.5,14.6184]
[1759208517142,2.746,4196.7,4196.5,14.6184]
[1759208517473,0.001,4197.2,4196.6,4.94172881]
[1759208517633,0.001,4197.2,4196.7,0.7079]
[1759208517840,0.001,4197.2,4196.7,0.2351]
[1759208518040,0.001,4197.2,4197.1,14.5]
[1759208518963,0.001,4197.2,4197.1,14.7351]
[1759208519173,0.001,4197.2,4197.1,15.2079]
[1759208520448,0.2759,4197.2,4197.1,14.5]
[1759208520859,2.75,4197.2,4197.1,14.5]
[1759208521253,0.001,4197.2,4197.1,14.5]
[1759208521454,2.75,4197.2,4197.1,14.5]
[1759208521655,5.13254074,4197.2,4197.1,14.5]
[1759208521962,2.749,4197.2,4196.4,0.2351]
[1759208522179,2.38266189,4197.0,4196.4,0.2351]
[1759208522485,2.38266189,4197.0,4196.5,14.5]
[1759208522637,2.82956189,4197.0,4196.5,14.5]
[1759208522838,0.2326,4196.9,4196.5,14.5]
[1759208523043,2.75,4196.8,4196.5,14.5]
[1759208523375,0.4469,4196.7,4196.5,14.5]
[1759208524173,2.75,4196.8,4196.5,14.5]
[1759208524773,5.13278649,4196.8,4196.5,14.5]
[1759208525088,2.75,4196.7,4196.5,14.5]
[1759208525976,2.749,4196.6,4196.5,14.5]
[1759208527070,2.749,4196.6,4196.5,14.7351]
[1759208527674,2.749,4196.6,4196.5,14.8535]
[1759208529280,2.749,4196.6,4196.5,14.6184]
[1759208529854,2.38282652,4196.7,4196.5,14.6184]
[1759208530182,5.12987791,4196.7,4196.5,14.6184]
[1759208530570,2.747,4196.7,4196.5,14.6184]
[1759208530766,2.61606426,4197.0,4196.5,14.6184]
[1759208530970,2.38272525,4196.9,4196.5,14.8495]
[1759208531184,5.12877583,4196.8,4196.5,14.6184]
[1759208532467,2.746,4196.8,4196.5,14.6184]
[1759208532666,2.746,4196.8,4196.5,14.8495]
[1759208532865,2.746,4196.7,4196.5,14.6184]
[1759208533079,2.38276782,4196.8,4196.5,14.6184]
[1759208533287,2.38284331,4196.7,4196.5,14.6184]
[1759208533699,5.12784331,4196.7,4196.5,14.6184]
[1759208533897,2.745,4196.7,4196.5,14.6184]
[1759208534297,2.38272974,4196.9,4196.5,14.6184]
[1759208534486,2.745,4196.8,4196.5,14.8495]
[1759208534796,5.12781757,4196.8,4196.5,14.8495]
[1759208535101,2.38283004,4196.7,4196.5,14.8495]
[1759208535397,2.38283004,4196.7,4196.5,14.6184]
[1759208535581,2.3828389,4196.7,4196.5,14.6184]
[1759208535781,5.1268389,4196.7,4196.5,14.6184]
[1759208535988,2.3828389,4196.7,4196.5,14.6184]
[1759208536298,5.1268389,4196.7,4196.5,14.6184]
[1759208536883,2.38288138,4196.6,4196.5,14.6184]
[1759208537197,3.8378474,4196.6,4196.5,14.6184]
[1759208537400,1.47880578,4196.6,4195.5,4.4397]
[1759208537593,1.47880578,4196.6,4195.9,0.1184]
[1759208537594,2.743,4196.5,4195.9,0.1184]
[1759208537792,2.38322959,4196.0,4195.9,0.1184]
[1759208537992,5.12822959,4196.0,4195.9,14.6184]
[1759208538188,5.83222959,4196.0,4195.9,14.6184]
[1759208538868,5.83222959,4196.0,4195.9,14.5]
[1759208541770,2.38328477,4195.9,4195.6,4.21]
[1759208541970,2.745,4195.8,4195.6,4.21]
[1759208542196,2.745,4195.8,4195.4,2.3835193]
[1759208542398,0.75096602,4196.6,4195.7,14.5]
[1759208542605,2.744,4196.5,4195.8,0.6749]
[1759208542771,2.744,4196.5,4195.8,0.4452]
[1759208542966,2.38284325,4196.7,4195.9,0.2297]
[1759208543202,2.38284325,4196.7,4195.9,2.61296954]
[1759208543404,2.744,4196.6,4196.0,0.6749]
[1759208543595,2.744,4196.6,4196.1,0.2297]
[1759208543982,2.744,4196.6,4196.2,0.2297]
[1759208544506,2.744,4196.5,4196.2,0.2297]
[1759208544679,2.744,4196.5,4195.7,19.62739114]
[1759208544680,0.001,4197.2,4196.3,0.6749]
[1759208544885,2.744,4197.1,4196.4,0.2297]
[1759208545085,1.3524408,4197.0,4196.4,4.4397]
[1759208545600,1.3524408,4197.0,4196.4,6.82268585]
[1759208545775,2.743,4196.9,4196.4,4.4397]
[1759208546098,2.743,4196.9,4196.5,0.2297]
[1759208546276,2.743,4196.9,4196.6,14.5]
[1759208546675,10.07574074,4196.7,4196.6,14.5]
[1759208546993,2.38288261,4196.6,4196.4,4.21]
[1759208547194,2.743,4196.5,4196.4,4.21]
[1759208547395,3.447,4196.5,4196.4,18.71]
[1759208548188,3.447,4196.5,4196.4,14.5]
[1759208548389,4.79927988,4196.5,4196.4,14.5]
[1759208549709,0.1184,4196.8,4196.4,14.5]
[1759208550011,2.743,4196.7,4196.4,14.5]
[1759208551306,5.12583733,4196.7,4196.4,14.5]
[1759208551520,2.38292477,4196.6,4196.4,14.5]
[1759208551727,2.743,4196.5,4196.4,14.5]
[1759208552021,2.85472477,4196.6,4196.4,14.5]
[1759208552325,2.743,4196.5,4196.4,14.5]
[1759208552625,3.447,4196.5,4196.4,14.5]
[1759208553128,5.82993816,4196.5,4196.4,14.5]
[1759208553306,6.41302679,4196.5,4196.4,14.5]
[1759208553499,2.743,4196.5,4196.4,14.5]
[1759208553792,2.742,4196.5,4196.4,14.7297]
[1759208554381,2.742,4196.5,4196.4,14.5]
[1759208556508,0.001,4196.7,4196.4,14.7297]
[1759208556676,0.001,4196.7,4196.5,0.25352938]
[1759208556882,2.741,4196.6,4196.5,0.2297]
[1759208557410,2.741,4196.6,4196.5,14.7297]
[1759208558508,2.74,4196.6,4196.5,14.7297]
[1759208558708,2.74,4196.6,4196.5,15.1749]
[1759208558907,0.001,4196.7,4196.5,15.1749]
[1759208559119,2.74,4196.6,4196.5,14.9452]
[1759208559425,2.74,4196.6,4196.5,15.0636]
[1759208559730,0.001,4196.7,4196.5,14.8545]
[1759208559897,2.741,4196.7,4196.6,0.2361]
[1759208563540,2.741,4196.7,4196.6,14.7361]
[1759208564242,2.739,4196.7,4196.6,14.7361]
[1759208564840,0.001,4196.7,4196.6,14.7361]
[1759208565018,2.739,4196.7,4196.6,14.7361]
[1759208565741,2.739,4196.7,4196.6,14.5]
[1759208566240,0.001,4196.7,4196.6,14.7361]
[1759208566646,0.001,4196.7,4196.6,14.5]
[1759208567544,0.001,4196.7,4196.6,14.7361]
[1759208570244,0.001,4196.7,4196.6,14.5]
[1759208570550,3.0939246,4196.7,4196.6,14.5]
[1759208570760,0.7111,4196.7,4196.6,14.5]
[1759208572017,0.001,4196.7,4196.6,14.5]
[1759208572556,0.4645,4196.7,4196.6,14.5]
[1759208573118,0.001,4196.7,4196.6,14.5]
[1759208574541,0.7111,4196.7,4196.6,14.5]
[1759208575251,11.90074235,4196.7,4196.3,4.21]
[1759208575450,3.4431,4196.6,4196.3,4.3284]
[1759208575752,0.7101,4196.5,4196.4,14.5]
[1759208577260,2.733,4196.6,4196.4,14.5]
[1759208577449,3.4431,4196.6,4196.4,14.5]
[1759208577757,0.4635,4196.5,4196.4,14.5]
[1759208577962,2.733,4196.6,4196.4,14.5]
[1759208578533,2.732,4196.5,4196.4,14.5]
[1759208578727,2.732,4196.5,4196.4,14.7361]
[1759208579738,2.732,4196.5,4196.4,14.5]
[1759208580063,3.4421,4196.5,4196.4,14.5]
[1759208581864,3.4421,4196.5,4196.3,0.1184]
[1759208582163,2.38305173,4196.3,4196.2,4.21]
[1759208582364,5.11505173,4196.3,4196.2,4.21]
[1759208582534,5.82515173,4196.3,4196.2,4.21]
[1759208582980,6.54211668,4196.3,4196.2,4.21]
[1759208583142,8.93942211,4196.3,4196.2,4.21]
[1759208583667,6.55637038,4196.3,4195.3,4.21]
[1759208583847,7.69291614,4195.7,4195.4,4.21]
[1759208584043,10.42591614,4195.7,4195.5,0.2361]
[1759208584457,10.42591614,4195.7,4195.5,0.6809]
[1759208584458,2.733,4195.7,4195.5,0.6809]
[1759208584774,2.38357125,4197.2,4195.6,0.6809]
[1759208585076,2.733,4196.6,4195.8,2.38328734]
[1759208585366,2.733,4196.6,4196.0,2.38319956]
[1759208585575,2.733,4196.6,4196.1,17.56406394]
[1759208585870,2.733,4196.6,4196.2,0.6809]
[1759208586067,2.733,4196.5,4196.3,0.2361]
[1759208586567,2.733,4196.5,4196.3,0.6809]
[1759208586935,2.733,4196.5,4196.4,0.2361]
[1759208588071,0.001,4196.7,4196.6,2.38288138]
[1759208588239,0.001,4196.7,4196.6,5.12088138]
[1759208588440,0.001,4196.7,4196.6,20.30178138]
[1759208589769,0.001,4196.7,4196.6,21.09378138]
[1759208589949,0.001,4196.7,4196.6,23.03287138]
[1759208590346,0.001,4196.7,4196.6,16.67519]
[1759208590546,0.001,4196.7,4196.6,17.238]
[1759208590778,0.001,4196.7,4196.6,19.85388138]
[1759208591988,0.001,4196.7,4196.6,19.97228138]
[1759208593169,0.001,4196.7,4196.6,14.6184]
[1759208593369,0.6966,4196.7,4196.6,14.6184]
[1759208593679,0.6966,4196.7,4196.4,0.1184]
[1759208593858,3.1941,4196.6,4196.4,0.1184]
[1759208594066,3.1941,4196.6,4196.4,14.5]
[1759208594067,7.69291614,4196.5,4196.4,14.5]
[1759208594259,8.38851614,4196.5,4196.4,14.5]
[1759208595486,3.4346,4196.5,4196.4,14.5]
[1759208596169,2.738,4196.5,4196.4,14.5]
[1759208597692,0.001,4196.7,4196.4,14.7452]
[1759208597880,2.738,4196.5,4196.4,14.5]
[1759208599393,2.738,4196.5,4196.4,14.7452]
[1759208601380,0.001,4196.7,4196.4,14.7452]
[1759208601697,2.737,4196.6,4196.4,0.2452]
[1759208601865,0.001,4196.7,4196.4,0.2452]
[1759208602066,2.737,4196.6,4196.4,0.2452]
[1759208602288,2.737,4196.6,4196.5,14.5]
[1759208602859,0.001,4196.7,4196.5,14.5]
[1759208603061,0.001,4196.7,4196.6,0.2452]
[1759208603265,2.737,4196.7,4196.6,0.2452]
[1759208603467,5.3621764,4196.7,4196.5,14.5]
[1759208603686,0.7171,4196.6,4196.5,14.5]
[1759208603989,0.7171,4196.6,4196.5,14.6184]
[1759208604201,0.74093976,4196.6,4196.5,14.6184]
[1759208604398,1.99389891,4196.6,4196.5,14.5]
[1759208604569,4.37678029,4196.6,4196.5,14.5]
[1759208604896,4.37778029,4196.6,4196.5,14.5]
[1759208606491,3.12482114,4196.6,4196.5,14.5]
[1759208607183,0.001,4196.6,4196.5,14.5]
[1759208607492,2.736,4196.6,4196.5,14.7452]
[1759208608390,2.736,4196.6,4196.5,14.5]
[1759208608595,0.001,4196.6,4196.5,14.5]
[1759208608797,2.736,4196.6,4196.5,14.5]
[1759208609296,5.83598138,4196.6,4196.5,14.5]
[1759208609592,3.4531,4196.6,4196.5,14.5]
[1759208610160,2.736,4196.6,4196.5,14.5]
[1759208611293,2.736,4196.6,4196.5,14.7452]
[1759208612280,2.735,4196.6,4196.5,14.7452]
[1759208612480,2.735,4196.6,4196.5,14.5]
[1759208612881,2.734,4196.6,4196.5,14.5]
[1759208614574,0.001,4196.6,4196.5,14.5]
[1759208614773,2.734,4196.6,4196.5,14.5]
[1759208620410,2.734,4196.6,4196.5,14.7308]
[1759208620607,2.734,4196.6,4196.5,14.5]
[1759208622517,2.731,4196.6,4196.5,14.7308]
[1759208623493,2.731,4196.6,4196.5,14.5]
[1759208624991,2.73,4196.6,4196.5,14.7308]
[1759208626029,2.73,4196.6,4196.5,14.5]
[1759208626337,2.9795,4196.6,4196.5,14.5]
[1759208626816,2.73,4196.6,4196.5,14.5]
[1759208628086,0.001,4196.6,4196.5,15.317]
[1759208628294,0.001,4196.6,4196.5,21.2847]
[1759208628501,0.001,4196.6,4196.5,19.0592]
[1759208629331,0.001,4196.6,4196.5,19.527]
[1759208630226,0.001,4196.6,4196.5,21.90993816]
[1759208632325,0.001,4196.6,4196.5,19.0592]
[1759208633105,0.001,4196.6,4196.5,18.8284]
[1759208633314,0.7179,4196.6,4196.5,18.8284]
[1759208633723,0.2505,4196.6,4196.5,18.8284]
[1759208633928,0.001,4196.6,4196.5,18.8284]
[1759208634440,5.82678138,4196.6,4196.5,18.8284]
[1759208634639,3.4439,4196.6,4196.5,18.8284]
[1759208636324,0.001,4196.7,4196.5,17.00133816]
[1759208636522,0.001,4197.5,4197.1,2.3825975]
[1759208636849,0.001,4197.5,4197.4,3.17442721]